bitfinex/quotes_BTCUSD_20250223
["timestamp","ask_amount","ask_price","bid_price","bid_amount"]
[1740307007214,0.01454085,96337.0,96324.0,0.00124562]
[1740307007413,0.207606,96336.0,96324.0,0.15696962]
[1740307007726,0.155715,96330.0,96324.0,0.00124562]
[1740307008091,0.11718654,96337.0,96320.0,0.00124562]
[1740307008553,0.155714,96331.0,96322.0,0.207636]
[1740307008721,0.155714,96331.0,96324.0,0.155723]
[1740307009260,0.207606,96336.0,96325.0,0.479422]
[1740307009389,0.155713,96331.0,96325.0,0.479422]
[1740307009596,0.155714,96331.0,96325.0,0.479422]
[1740307010021,0.155714,96330.0,96325.0,0.3237]
[1740307011012,0.00586508,96329.0,96325.0,0.3237]
[1740307011835,0.00586508,96329.0,96325.0,0.479422]
[1740307012247,0.00586508,96329.0,96325.0,0.481422]
[1740307012437,0.00586508,96329.0,96325.0,0.479422]
[1740307012798,0.00586508,96329.0,96325.0,0.482422]
[1740307013318,0.00586508,96329.0,96325.0,0.3267]
[1740307014157,0.16158108,96329.0,96325.0,0.3267]
[1740307014356,0.00586508,96329.0,96325.0,0.534328]
[1740307014553,0.00586508,96329.0,96326.0,0.15696459]
[1740307014828,0.155711,96332.0,96326.0,0.15696459]
[1740307015031,0.00586507,96328.0,96326.0,0.15696459]
[1740307015205,0.00586507,96328.0,96327.0,0.3237]
[1740307015411,0.155711,96332.0,96327.0,0.3237]
[1740307015767,0.0058651,96331.0,96327.0,0.3237]
[1740307016189,0.155711,96332.0,96327.0,0.3237]
[1740307016398,0.0058651,96331.0,96327.0,0.3237]
[1740307016601,0.0058651,96331.0,96327.0,0.3257]
[1740307017003,0.0058651,96331.0,96327.0,0.3237]
[1740307017665,0.1615781,96331.0,96327.0,0.3237]
[1740307017868,0.0058651,96331.0,96327.0,0.3237]
[1740307018649,0.0058651,96331.0,96327.0,0.3257]
[1740307019569,0.155715,96330.0,96328.0,0.00124557]
[1740307020027,0.00587109,96329.0,96328.0,0.00124557]
[1740307020653,0.00587109,96329.0,96327.0,0.3257]
[1740307021303,0.00757169,96329.0,96327.0,0.3257]
[1740307021513,0.00757169,96329.0,96327.0,0.3237]
[1740307021867,0.00757169,96329.0,96328.0,0.003]
[1740307022301,0.00757169,96329.0,96327.0,0.3237]
[1740307022506,0.00757169,96329.0,96327.0,0.3267]
[1740307022896,0.00757169,96329.0,96327.0,0.3237]
[1740307023100,0.00757169,96329.0,96328.0,0.003]
[1740307024012,0.00757169,96329.0,96327.0,0.3237]
[1740307024482,0.16328769,96329.0,96327.0,0.3237]
[1740307024996,0.00757169,96329.0,96327.0,0.3237]
[1740307025755,0.155717,96328.0,96327.0,0.3267]
[1740307026214,0.16158807,96328.0,96327.0,0.3267]
[1740307026457,0.14177507,96328.0,96327.0,0.3267]
[1740307026907,0.00587107,96328.0,96327.0,0.3267]
[1740307027137,0.16158807,96328.0,96327.0,0.3237]
[1740307027445,0.16158807,96328.0,96327.0,0.3267]
[1740307028245,0.26423376,96328.0,96327.0,0.3267]
[1740307028495,0.27877461,96328.0,96327.0,0.3267]
[1740307029500,0.28077461,96328.0,96327.0,0.3267]
[1740307029698,0.28077461,96328.0,96327.0,0.3237]
[1740307029896,0.28177461,96328.0,96327.0,0.3237]
[1740307030539,0.00887107,96328.0,96327.0,0.3237]
[1740307030679,0.00887107,96328.0,96327.0,0.479419]
[1740307030879,0.003,96328.0,96327.0,0.479419]
[1740307031084,0.003,96328.0,96327.0,0.557719]
[1740307031921,0.0017006,96329.0,96328.0,0.155717]
[1740307032263,0.0017006,96329.0,96328.0,0.15696236]
[1740307033251,0.0017006,96329.0,96328.0,0.16196236]
[1740307033820,0.0027006,96329.0,96328.0,0.160717]
[1740307034197,0.0027006,96329.0,96328.0,0.16196242]
[1740307034403,0.0027006,96329.0,96328.0,0.005]
[1740307034904,0.00930157,96329.0,96328.0,0.005]
[1740307035104,0.00930157,96329.0,96328.0,0.160717]
[1740307035408,0.00930157,96329.0,96328.0,0.16196258]
[1740307035774,0.0027006,96329.0,96328.0,0.48566258]
[1740307035974,0.0027006,96329.0,96328.0,0.484417]
[1740307041581,0.1584166,96329.0,96328.0,0.3287]
[1740307041913,0.16501762,96329.0,96328.0,0.3287]
[1740307042315,0.16401762,96329.0,96328.0,0.3287]
[1740307042565,0.16401762,96329.0,96328.0,0.3237]
[1740307042968,0.16401762,96329.0,96328.0,0.3267]
[1740307045118,0.16401762,96329.0,96328.0,0.3237]
[1740307045560,0.16401762,96329.0,96328.0,0.3267]
[1740307045768,0.16401762,96329.0,96328.0,0.3237]
[1740307046123,0.16401762,96329.0,96328.0,0.3267]
[1740307049376,0.10462461,96331.0,96328.0,0.3267]
[1740307049579,0.19150762,96329.0,96328.0,0.3267]
[1740307049721,0.20604847,96329.0,96328.0,0.3267]
[1740307049922,0.30869416,96329.0,96328.0,0.003]
[1740307050946,0.30610447,96329.0,96328.0,0.003]
[1740307051188,0.38870447,96329.0,96328.0,0.003]
[1740307051419,0.39094566,96329.0,96328.0,0.003]
[1740307051647,0.54094566,96329.0,96328.0,0.003]
[1740307054290,0.51094566,96329.0,96328.0,0.003]
[1740307055460,0.51635771,96329.0,96328.0,0.003]
[1740307056254,0.51635771,96329.0,96328.0,0.0038501]
[1740307056438,0.51805791,96329.0,96328.0,0.0038501]
[1740307060033,0.51805791,96329.0,96328.0,0.0008501]
[1740307060353,0.52105791,96329.0,96328.0,0.0008501]
[1740307061494,0.52605791,96329.0,96328.0,0.0008501]
[1740307081729,0.44524165,96329.0,96328.0,0.0008501]
[1740307087845,0.44524165,96329.0,96328.0,0.00141329]
[1740307110122,0.32805511,96329.0,96328.0,0.00141329]
[1740307110471,0.34259596,96329.0,96328.0,0.00141329]
[1740307119568,0.44524165,96329.0,96328.0,0.00141329]
[1740307139751,0.26333777,96329.0,96328.0,0.00141329]
[1740307139983,0.20764186,96329.0,96328.0,0.00141329]
[1740307140215,0.27939486,96329.0,96328.0,0.00141329]
[1740307140446,0.20859483,96329.0,96328.0,0.00141329]
[1740307140704,0.18212423,96329.0,96328.0,0.00141329]
[1740307140943,0.11347797,96329.0,96328.0,0.00141329]
[1740307141433,0.04015036,96329.0,96328.0,0.00141329]
[1740307141627,0.19586636,96329.0,96328.0,0.00141329]
[1740307142794,0.21040721,96329.0,96328.0,0.00141329]
[1740307143203,0.18108913,96329.0,96328.0,0.00141329]
[1740307144787,0.1507964,96329.0,96328.0,0.00141329]
[1740307144908,0.15621791,96329.0,96328.0,0.00141329]
[1740307145523,0.14167706,96329.0,96328.0,0.07017226]
[1740307145733,0.14167706,96329.0,96328.0,0.04951329]
[1740307146750,0.15621791,96329.0,96328.0,0.04951329]
[1740307148446,0.01996236,96329.0,96328.0,0.28483029]
[1740307148824,0.00542151,96329.0,96328.0,0.60853029]
[1740307149448,0.00712171,96329.0,96328.0,0.60853029]
[1740307149816,0.01012171,96329.0,96328.0,0.60853029]
[1740307150034,0.00712171,96329.0,96328.0,0.60853029]
[1740307150238,0.00712171,96329.0,96328.0,0.63258031]
[1740307150433,0.00712171,96329.0,96328.0,0.47686331]
[1740307150641,0.00712171,96329.0,96328.0,0.47386331]
[1740307150848,0.00712171,96329.0,96328.0,0.47786331]
[1740307151044,0.18237856,96329.0,96328.0,0.47786331]
[1740307151265,0.18237856,96329.0,96328.0,0.35016331]
[1740307151655,0.17737856,96329.0,96328.0,0.35016331]
[1740307151881,0.17737856,96329.0,96328.0,0.35116331]
[1740307152328,0.17737856,96329.0,96328.0,0.35016331]
[1740307152576,0.17837856,96329.0,96328.0,0.34616331]
[1740307152987,0.17837856,96329.0,96328.0,0.34816331]
[1740307153193,0.17837856,96329.0,96328.0,0.32511329]
[1740307157456,0.17837856,96329.0,96328.0,0.3245501]
[1740307165981,0.28102425,96329.0,96328.0,0.3245501]
[1740307166558,0.28102425,96329.0,96328.0,0.0008501]
[1740307168826,0.28046219,96329.0,96328.0,0.0008501]
[1740307174393,0.1778165,96329.0,96328.0,0.0008501]
[1740307181759,0.207619,96331.0,96328.0,0.0008501]
[1740307181926,0.00048189,96329.0,96328.0,0.0008501]
[1740307182133,0.207615,96333.0,96328.0,0.0008501]
[1740307182351,0.00542149,96330.0,96328.0,0.0008501]
[1740307182676,0.155716,96329.0,96328.0,0.0008501]
[1740307184351,0.17195725,96329.0,96328.0,0.0008501]
[1740307185048,0.17295725,96329.0,96328.0,0.0008501]
[1740307186748,0.14921818,96329.0,96328.0,0.0008501]
[1740307186957,0.01724125,96329.0,96328.0,0.0008501]
[1740307187179,0.02266288,96329.0,96328.0,0.0008501]
[1740307187683,0.17837888,96329.0,96328.0,0.0008501]
[1740307187957,0.16213763,96329.0,96328.0,0.0008501]
[1740307191150,0.17667848,96329.0,96328.0,0.0008501]
[1740307195403,0.17837888,96329.0,96328.0,0.0008501]
[1740307196657,0.17837888,96329.0,96328.0,0.02157973]
[1740307200684,0.17737888,96329.0,96328.0,0.02157973]
[1740307201185,0.18037888,96329.0,96328.0,0.02157973]
[1740307201576,0.17837888,96329.0,96328.0,0.02157973]
[1740307201972,0.18037888,96329.0,96328.0,0.02157973]
[1740307205132,0.28302457,96329.0,96328.0,0.02157973]
[1740307210188,0.155735,96317.0,96311.0,0.3245509]
[1740307210389,0.17027585,96317.0,96311.0,0.3245509]
[1740307210823,0.17569809,96317.0,96311.0,0.3245509]
[1740307211022,0.18653421,96317.0,96311.0,0.3245509]
[1740307211503,0.18653421,96317.0,96316.0,0.00604492]
[1740307212299,0.18653421,96317.0,96316.0,0.00304492]
[1740307212869,0.17027585,96317.0,96316.0,0.00304492]
[1740307213112,0.17027585,96317.0,96316.0,4.492e-05]
[1740307213315,0.18060362,96317.0,96316.0,4.492e-05]
[1740307216551,0.19786121,96317.0,96316.0,4.492e-05]
[1740307217316,0.19686121,96317.0,96316.0,4.492e-05]
[1740307217691,0.34886121,96317.0,96316.0,4.492e-05]
[1740307218065,0.4515069,96317.0,96316.0,4.492e-05]
[1740307218268,0.4525069,96317.0,96316.0,4.492e-05]
[1740307218413,0.4515069,96317.0,96316.0,4.492e-05]
[1740307218608,0.4495069,96317.0,96316.0,0.00089512]
[1740307218808,0.4505069,96317.0,96316.0,0.00089512]
[1740307219062,0.4495069,96317.0,96316.0,0.00089512]
[1740307219461,0.4535069,96317.0,96316.0,0.00089512]
[1740307220037,0.4555069,96317.0,96316.0,0.00089512]
[1740307220492,0.4535069,96317.0,96316.0,0.00089512]
[1740307220720,0.4585069,96317.0,96316.0,0.00089512]
[1740307222715,0.4660269,96317.0,96316.0,0.00089512]
[1740307223979,0.4585069,96317.0,96316.0,0.00089512]
[1740307226952,0.155756,96304.0,96303.0,0.01832968]
[1740307227246,0.155769,96296.0,96291.0,0.046]
[1740307227465,0.17030985,96296.0,96291.0,0.046]
[1740307228496,0.17030985,96296.0,96295.0,0.08]
[1740307228845,0.17030985,96296.0,96295.0,0.003]
[1740307229994,0.17030985,96296.0,96295.0,0.005]
[1740307230401,0.17030985,96296.0,96295.0,0.003]
[1740307230812,0.17030985,96296.0,96295.0,0.001]
[1740307231200,0.17030985,96296.0,96295.0,0.0038502]
[1740307231762,0.155774,96293.0,96292.0,0.3225502]
[1740307232037,0.17031485,96293.0,96292.0,0.3225502]
[1740307232873,0.17573821,96293.0,96292.0,0.3225502]
[1740307233036,0.17573821,96293.0,96292.0,0.3245502]
[1740307233815,0.17573821,96293.0,96292.0,0.3225502]
[1740307234460,0.17573821,96293.0,96292.0,0.3245502]
[1740307234694,0.17573821,96293.0,96292.0,0.3225502]
[1740307236002,0.17673821,96293.0,96292.0,0.3225502]
[1740307236218,0.17031685,96292.0,96291.0,0.046]
[1740307236376,0.155789,96284.0,96283.0,0.01751717]
[1740307237417,0.155789,96284.0,96283.0,0.02051717]
[1740307237614,0.15591812,96284.0,96283.0,0.04414834]
[1740307240475,0.17045897,96284.0,96283.0,0.04414834]
[1740307246464,0.17045897,96284.0,96283.0,0.04114834]
[1740307247615,0.17045897,96284.0,96283.0,0.03814834]
[1740307247816,0.17045897,96284.0,96283.0,0.03914834]
[1740307248252,0.17045897,96284.0,96283.0,0.03814834]
[1740307248768,0.17045897,96284.0,96283.0,0.03914834]
[1740307249941,0.17245897,96284.0,96283.0,0.03914834]
[1740307250644,0.17245897,96284.0,96283.0,0.03814834]
[1740307251012,0.17345897,96284.0,96283.0,0.03814834]
[1740307276311,0.32345897,96284.0,96283.0,0.01751717]
[1740307278222,0.42610466,96284.0,96283.0,0.01751717]
[1740307279607,0.50270466,96284.0,96283.0,0.01751717]
[1740307280833,0.50170466,96284.0,96283.0,0.01751717]
[1740307281048,0.50370466,96284.0,96283.0,0.01251717]
[1740307281457,0.50170466,96284.0,96283.0,0.01251717]
[1740307282095,0.50470466,96284.0,96283.0,0.01251717]
[1740307284318,0.43558466,96284.0,96283.0,0.01251717]
[1740307284896,0.42810466,96284.0,96283.0,0.01251717]
[1740307287096,0.43562466,96284.0,96283.0,0.01251717]
[1740307289639,0.43562466,96284.0,96283.0,0.00709275]
[1740307290905,0.17545897,96284.0,96283.0,0.00709275]
[1740307291616,0.17245897,96284.0,96283.0,0.00709275]
[1740307292113,0.17345897,96284.0,96283.0,0.00709275]
[1740307292317,0.17545897,96284.0,96283.0,0.00709275]
[1740307292523,0.17345897,96284.0,96283.0,0.00709275]
[1740307292935,0.17545897,96284.0,96283.0,0.00709275]
[1740307293140,0.17245897,96284.0,96283.0,0.00709275]
[1740307293543,0.17545897,96284.0,96283.0,0.00709275]
[1740307300843,0.17716017,96284.0,96283.0,0.00709275]
[1740307304829,0.02137117,96284.0,96283.0,0.00709275]
[1740307305760,0.01637117,96284.0,96283.0,0.00709275]
[1740307306386,0.01737117,96284.0,96283.0,0.08529275]
[1740307306536,0.01737117,96284.0,96283.0,0.24108275]
[1740307306939,0.01737117,96284.0,96283.0,0.08529275]
[1740307307144,0.01737117,96284.0,96283.0,0.24108275]
[1740307307365,0.01637117,96284.0,96283.0,0.08529275]
[1740307307905,0.01637117,96284.0,96283.0,0.08629275]
[1740307308312,0.01637117,96284.0,96283.0,0.08729275]
[1740307309847,0.01637117,96284.0,96283.0,0.24308275]
[1740307310050,0.01637117,96284.0,96283.0,0.61243295]
[1740307310840,0.01637117,96284.0,96283.0,0.63334825]
[1740307311540,0.00183032,96284.0,96283.0,0.73599394]
[1740307312518,0.00183032,96284.0,96283.0,0.73499394]
[1740307312942,0.00183032,96284.0,96283.0,0.73999394]
[1740307313145,0.00183032,96284.0,96283.0,0.73899394]
[1740307313355,0.00283032,96284.0,96283.0,0.74099394]
[1740307315146,0.00283032,96284.0,96283.0,1.28799394]
[1740307324265,0.00183032,96284.0,96283.0,1.28599394]
[1740307324687,0.00283032,96284.0,96283.0,1.29199394]
[1740307324913,0.00283032,96284.0,96283.0,1.28699394]
[1740307325484,0.00283032,96284.0,96283.0,1.29199394]
[1740307336214,0.00283032,96284.0,96283.0,1.44199394]
[1740307345858,0.00283032,96284.0,96283.0,1.53539396]
[1740307348380,0.00283032,96284.0,96283.0,1.44199394]
[1740307355006,0.00283032,96284.0,96283.0,1.36379394]
[1740307355565,0.00283032,96284.0,96283.0,1.16699394]
[1740307359504,0.00283032,96284.0,96283.0,1.2604638]
[1740307361695,0.00283032,96284.0,96283.0,1.16699394]
[1740307371838,0.00283032,96284.0,96283.0,1.16699394]
[1740307382883,0.00226806,96284.0,96283.0,1.16699394]
[1740307391440,0.00226806,96284.0,96283.0,1.24559394]
[1740307409492,0.00226806,96284.0,96283.0,1.16699394]
[1740307440432,0.00226806,96284.0,96283.0,1.31699394]
[1740307452595,0.00226806,96284.0,96283.0,1.44329394]
[1740307452725,0.00226806,96284.0,96283.0,1.46329394]
[1740307456809,6e-08,96284.0,96283.0,1.48329394]
[1740307457013,6e-08,96284.0,96283.0,1.51576603]
[1740307457768,0.001701,96292.0,96291.0,0.275977]
[1740307457974,0.001701,96292.0,96291.0,0.37905561]
[1740307458916,0.002701,96292.0,96291.0,0.38605561]
[1740307459929,0.002701,96292.0,96291.0,0.39305561]
[1740307460533,0.002701,96292.0,96291.0,1.26260581]
[1740307460847,0.002701,96292.0,96291.0,1.27300285]
[1740307466276,0.002701,96292.0,96291.0,1.28078038]
[1740307466926,0.002701,96292.0,96291.0,1.20058038]
[1740307467916,0.002701,96292.0,96291.0,1.17280285]
[1740307468154,0.002701,96292.0,96291.0,1.15280285]
[1740307468776,0.002701,96292.0,96291.0,1.17280285]
[1740307469071,0.002701,96292.0,96291.0,1.15280285]
[1740307469255,0.002701,96292.0,96291.0,1.17280285]
[1740307470289,0.002701,96292.0,96291.0,1.15280285]
[1740307471110,0.002701,96292.0,96291.0,1.14240581]
[1740307471267,0.002701,96292.0,96291.0,1.29240581]
[1740307471728,0.001701,96292.0,96291.0,1.28540581]
[1740307472127,0.001701,96292.0,96291.0,1.27840581]
[1740307472553,0.001701,96292.0,96291.0,1.30487629]
[1740307474713,0.001701,96292.0,96291.0,1.15487629]
[1740307474917,0.002701,96292.0,96291.0,1.16187629]
[1740307475374,0.002701,96292.0,96291.0,1.15487629]
[1740307475599,0.001701,96292.0,96291.0,1.15487629]
[1740307475750,0.002701,96292.0,96291.0,1.14240581]
[1740307478024,0.001701,96292.0,96291.0,1.13540581]
[1740307478432,0.001701,96292.0,96291.0,1.13940581]
[1740307478809,0.001701,96292.0,96291.0,1.13540581]
[1740307479014,0.001701,96292.0,96291.0,1.12840581]
[1740307479213,0.001701,96292.0,96291.0,1.13240581]
[1740307479415,0.001701,96292.0,96291.0,1.13640581]
[1740307483212,0.001701,96292.0,96291.0,1.13240581]
[1740307483416,0.001701,96292.0,96291.0,1.13540581]
[1740307483953,0.001701,96292.0,96291.0,1.13140581]
[1740307484466,0.001701,96292.0,96291.0,1.13540581]
[1740307490002,0.001701,96292.0,96291.0,0.97962881]
[1740307490261,0.001701,96292.0,96291.0,1.13540581]
[1740307493769,0.001701,96292.0,96291.0,0.32998312]
[1740307493770,0.284277,96292.0,96291.0,0.32998312]
[1740307494636,0.284277,96292.0,96291.0,0.32598312]
[1740307494854,0.284277,96292.0,96291.0,0.32698312]
[1740307495276,0.284277,96292.0,96291.0,0.32398312]
[1740307496155,0.284277,96292.0,96291.0,0.32498312]
[1740307497885,0.28970017,96292.0,96291.0,0.32498312]
[1740307498118,0.28970017,96292.0,96291.0,0.32398312]
[1740307498319,0.28970017,96292.0,96291.0,0.32298312]
[1740307498486,0.29070017,96292.0,96291.0,0.32298312]
[1740307504544,0.29060825,96292.0,96291.0,0.32298312]
[1740307505649,0.24300825,96292.0,96291.0,0.32298312]
[1740307505869,0.00803225,96292.0,96291.0,0.32298312]
[1740307507443,0.00803225,96292.0,96291.0,0.47876012]
[1740307508330,0.00703225,96292.0,96291.0,0.47876012]
[1740307508529,0.00803225,96292.0,96291.0,0.58140581]
[1740307508936,0.00803225,96292.0,96291.0,0.58240581]
[1740307509723,0.00803225,96292.0,96291.0,0.58140581]
[1740307510544,0.00703225,96292.0,96291.0,0.58140581]
[1740307510739,0.00703225,96292.0,96291.0,0.58240581]
[1740307511089,0.00703225,96292.0,96291.0,1.13140581]
[1740307511287,0.00703225,96292.0,96291.0,1.13040581]
[1740307511645,0.00703225,96292.0,96291.0,1.13240581]
[1740307514518,0.00703225,96292.0,96291.0,1.15360968]
[1740307522368,0.00703225,96292.0,96291.0,1.15445978]
[1740307536346,0.00703225,96292.0,96291.0,0.99868278]
[1740307536547,0.00703225,96292.0,96291.0,1.15445978]
[1740307536876,0.00703225,96292.0,96291.0,0.89603709]
[1740307537075,0.16280825,96292.0,96291.0,0.89603709]
[1740307537283,0.16280825,96292.0,96291.0,0.89403709]
[1740307537486,0.00703225,96292.0,96291.0,0.89203709]
[1740307537637,0.01203985,96292.0,96291.0,0.89203709]
[1740307537839,0.00703225,96292.0,96291.0,0.89303709]
[1740307538039,0.01203985,96292.0,96291.0,0.89203709]
[1740307538550,0.00794525,96292.0,96291.0,0.89303709]
[1740307539044,0.01295285,96292.0,96291.0,0.89203709]
[1740307539418,0.00894525,96292.0,96291.0,0.89203709]
[1740307540550,0.01395285,96292.0,96291.0,0.89203709]
[1740307540705,0.00894525,96292.0,96291.0,0.34503709]
[1740307540911,0.01395285,96292.0,96291.0,0.34503709]
[1740307545809,0.00894525,96292.0,96291.0,0.34503709]
[1740307546843,0.001701,96293.0,96291.0,0.34503709]
[1740307547041,0.001701,96293.0,96291.0,0.32383322]
[1740307547929,0.003701,96293.0,96291.0,0.32383322]
[1740307548553,0.004701,96293.0,96291.0,0.32383322]
[1740307553311,0.004701,96293.0,96291.0,0.47960922]
[1740307553759,0.004701,96293.0,96291.0,0.32383322]
[1740307553977,0.004701,96293.0,96291.0,0.47961022]
[1740307554167,0.002701,96293.0,96291.0,0.47961022]
[1740307554370,0.001701,96293.0,96291.0,0.32383322]
[1740307554571,0.002701,96293.0,96291.0,0.32383322]
[1740307561088,0.158475,96293.0,96291.0,0.32383322]
[1740307561711,0.002701,96293.0,96291.0,0.32383322]
[1740307561915,0.158476,96293.0,96291.0,0.32383322]
[1740307563736,0.002701,96293.0,96291.0,0.32383322]
[1740307564587,0.158476,96293.0,96291.0,0.32383322]
[1740307564788,0.002701,96293.0,96291.0,0.32383322]
[1740307565624,0.158475,96293.0,96291.0,0.32383322]
[1740307566680,0.002701,96293.0,96291.0,0.32383322]
[1740307569381,0.155776,96292.0,96291.0,0.32383322]
[1740307569581,0.002701,96293.0,96291.0,0.32383322]
[1740307569986,0.155776,96292.0,96291.0,0.32383322]
[1740307571567,0.001,96292.0,96291.0,0.32383322]
[1740307576814,0.001,96292.0,96291.0,0.34445462]
[1740307578491,0.001,96292.0,96291.0,0.50023162]
[1740307578885,0.001,96292.0,96291.0,0.34445462]
[1740307587291,0.001,96292.0,96291.0,0.32383322]
[1740307587640,0.156776,96292.0,96291.0,0.32383322]
[1740307587811,0.001,96292.0,96291.0,0.32383322]
[1740307588377,0.156776,96292.0,96291.0,0.32383322]
[1740307588824,0.001,96292.0,96291.0,0.32383322]
[1740307589460,0.156776,96292.0,96291.0,0.32383322]
[1740307590297,0.001,96292.0,96291.0,0.32383322]
[1740307590499,0.156776,96292.0,96291.0,0.32383322]
[1740307590710,0.001,96292.0,96291.0,0.32383322]
[1740307590897,0.156776,96292.0,96291.0,0.32383322]
[1740307592279,0.1584762,96292.0,96291.0,0.32383322]
[1740307595505,0.1584762,96292.0,96291.0,0.32383322]
[1740307605817,0.16888002,96292.0,96291.0,0.32383322]
[1740307609211,0.1584762,96292.0,96291.0,0.32383322]
[1740307637180,0.17301705,96292.0,96291.0,0.32383322]
[1740307639871,0.17801705,96292.0,96291.0,0.32383322]
[1740307640459,0.17301705,96292.0,96291.0,0.32383322]
[1740307640661,0.17201705,96292.0,96291.0,0.32383322]
[1740307641223,0.18101705,96292.0,96291.0,0.32383322]
[1740307641462,0.28727311,96292.0,96291.0,0.32383322]
[1740307641668,0.28727311,96292.0,96291.0,0.00128302]
[1740307641903,0.37410962,96292.0,96291.0,0.00128302]
[1740307642242,0.29127311,96292.0,96291.0,0.00128302]
[1740307646105,0.18862742,96292.0,96291.0,0.00128302]
[1740307646698,0.18101705,96292.0,96291.0,0.00128302]
[1740307649699,0.0107002,96292.0,96291.0,0.00128302]
[1740307650630,0.0057002,96292.0,96291.0,0.00128302]
[1740307650868,0.0097002,96292.0,96291.0,0.00128302]
[1740307651315,0.0017002,96292.0,96291.0,0.00128302]
[1740307651732,0.0047002,96292.0,96291.0,0.00128302]
[1740307652064,0.0057002,96292.0,96291.0,0.00128302]
[1740307652649,0.155777,96291.0,96286.0,0.00876741]
[1740307652916,0.15582021,96291.0,96285.0,0.3225502]
[1740307653245,4.321e-05,96291.0,96285.0,0.3225502]
[1740307653484,0.00541675,96290.0,96285.0,0.3225502]
[1740307654425,0.155781,96289.0,96285.0,0.3225502]
[1740307654624,0.00541675,96290.0,96285.0,0.3225502]
[1740307654825,0.155781,96289.0,96285.0,0.3225502]
[1740307655675,0.00541675,96290.0,96285.0,0.3225502]
[1740307655871,0.00641675,96290.0,96285.0,0.3225502]
[1740307656051,0.155781,96289.0,96285.0,0.3225502]
[1740307656238,0.001,96289.0,96285.0,0.3225502]
[1740307656698,0.155782,96288.0,96285.0,0.3225502]
[1740307658066,0.155785,96286.0,96285.0,0.3225502]
[1740307659256,0.207708,96289.0,96285.0,0.3225502]
[1740307659479,0.155785,96286.0,96285.0,0.3225502]
[1740307659912,0.155785,96286.0,96285.0,0.3235502]
[1740307660353,0.155785,96286.0,96285.0,0.3225502]
[1740307662306,0.155785,96286.0,96285.0,0.3234004]
[1740307665430,0.156785,96286.0,96285.0,0.3234004]
[1740307665636,0.157785,96286.0,96285.0,0.3234004]
[1740307665837,0.156785,96286.0,96285.0,0.3234004]
[1740307666425,0.159785,96286.0,96285.0,0.3234004]
[1740307667141,0.159785,96286.0,96285.0,0.34396987]
[1740307667789,0.162785,96286.0,96285.0,0.34396987]
[1740307672997,0.162785,96286.0,96285.0,0.3234004]
[1740307674525,0.1644854,96286.0,96285.0,0.3234004]
[1740307677834,0.16914932,96286.0,96285.0,0.3234004]
[1740307686621,0.01336432,96286.0,96285.0,0.3234004]
[1740307687653,0.00636432,96286.0,96285.0,0.3234004]
[1740307687829,0.16314932,96286.0,96285.0,0.3234004]
[1740307687998,0.00736432,96286.0,96285.0,0.3234004]
[1740307689295,0.16314932,96286.0,96285.0,0.3234004]
[1740307689539,0.16414932,96286.0,96285.0,0.3234004]
[1740307692043,0.00836432,96286.0,96285.0,0.3234004]
[1740307692591,0.00930622,96286.0,96285.0,0.3234004]
[1740307692743,0.00930622,96286.0,96285.0,0.3722004]
[1740307693535,0.0037004,96286.0,96285.0,0.3722004]
[1740307693879,0.00931069,96286.0,96285.0,0.3722004]
[1740307694192,0.0017004,96286.0,96285.0,0.3722004]
[1740307694606,0.00731069,96286.0,96285.0,0.3732004]
[1740307694805,0.0017004,96286.0,96285.0,0.3732004]
[1740307694969,0.00731069,96286.0,96285.0,0.3732004]
[1740307695329,0.16309569,96286.0,96285.0,0.3732004]
[1740307697156,0.16309569,96286.0,96285.0,0.3244004]
[1740307709624,0.00731069,96286.0,96285.0,0.3244004]
[1740307709801,0.16309569,96286.0,96285.0,0.3244004]
[1740307710506,0.00731069,96286.0,96285.0,0.4801874]
[1740307711462,0.0017004,96286.0,96285.0,0.4801874]
[1740307711713,0.0017004,96286.0,96285.0,0.3244004]
[1740307712373,0.00731069,96286.0,96285.0,0.3244004]
[1740307712623,0.0017004,96286.0,96285.0,0.3244004]
[1740307712820,0.00731069,96286.0,96285.0,0.3244004]
[1740307715747,0.00731069,96286.0,96285.0,0.3454672]
[1740307719225,0.16309569,96286.0,96285.0,0.3454672]
[1740307730946,0.16409569,96286.0,96285.0,0.3454672]
[1740307731340,0.00831069,96286.0,96285.0,0.3454672]
[1740307731538,0.16409569,96286.0,96285.0,0.3444672]
[1740307731763,0.00831069,96286.0,96285.0,0.3444672]
[1740307732156,0.0027004,96286.0,96285.0,0.3444672]
[1740307732358,0.00831069,96286.0,96285.0,0.3444672]
[1740307732562,0.0037004,96286.0,96285.0,0.3444672]
[1740307732761,0.00931069,96286.0,96285.0,0.3444672]
[1740307740053,0.0037004,96286.0,96285.0,0.3444672]
[1740307740454,0.00931069,96286.0,96285.0,0.3444672]
[1740307740656,0.0037004,96286.0,96285.0,0.3444672]
[1740307740873,0.00931069,96286.0,96285.0,0.3444672]
[1740307741073,0.0037004,96286.0,96285.0,0.3444672]
[1740307741277,0.00931069,96286.0,96285.0,0.3444672]
[1740307741480,0.0037004,96286.0,96285.0,0.3444672]
[1740307741986,0.00931069,96286.0,96285.0,0.3444672]
[1740307742163,0.0037004,96286.0,96285.0,0.3444672]
[1740307742399,0.00931069,96286.0,96285.0,0.3444672]
[1740307742585,0.0037004,96286.0,96285.0,0.3444672]
[1740307742787,0.00931069,96286.0,96285.0,0.3444672]
[1740307746356,0.00931069,96286.0,96285.0,0.5002542]
[1740307746990,0.0037004,96286.0,96285.0,0.5002542]
[1740307747774,0.0037004,96286.0,96285.0,0.5012542]
[1740307747973,0.0017004,96286.0,96285.0,0.5012542]
[1740307749898,0.0017004,96286.0,96285.0,0.3454672]
[1740307750224,0.0017004,96286.0,96285.0,0.5012542]
[1740307750225,0.00731069,96286.0,96285.0,0.5012542]
[1740307750425,0.0017004,96286.0,96285.0,0.5012542]
[1740307750628,0.0017004,96286.0,96285.0,0.3454672]
[1740307750854,0.0017004,96286.0,96285.0,0.5012542]
[1740307751056,0.0017004,96286.0,96285.0,0.3454672]
[1740307751307,0.00731068,96286.0,96285.0,0.3454672]
[1740307751512,0.0017004,96286.0,96285.0,0.3454672]
[1740307751705,0.00731663,96286.0,96285.0,0.3454672]
[1740307763905,0.0017004,96286.0,96285.0,0.3454672]
[1740307764109,0.00731438,96286.0,96285.0,0.3454672]
[1740307764323,0.0017004,96286.0,96285.0,0.3454672]
[1740307764532,0.00731438,96286.0,96285.0,0.3454672]
[1740307776890,0.0017004,96286.0,96285.0,0.3454672]
[1740307777136,0.00731438,96286.0,96285.0,0.3454672]
[1740307777367,0.0017004,96286.0,96285.0,0.3454672]
[1740307777598,0.00731438,96286.0,96285.0,0.3454672]
[1740307777833,0.0017004,96286.0,96285.0,0.3454672]
[1740307778036,0.00731438,96286.0,96285.0,0.3454672]
[1740307778259,0.0017004,96286.0,96285.0,0.3454672]